fUSD/lending_fUSD_20240617
["ID","MTS","AMOUNT","RATE_DAILY","PERIOD"]
[329765622,1718655053793,-500.0,0.00022191,3]
[329765623,1718655053803,-1647.55,0.00022191,3]
[329765624,1718655053812,-1117.86,0.00022191,3]
[329765625,1718655053821,-500.0,0.00022191,3]
[329765626,1718655053831,-970.91,0.00022191,3]
[329765627,1718655054004,-500.0,0.00022191,3]
[329765628,1718655054014,-500.0,0.00022191,3]
[329765629,1718655054024,-602.27,0.00022191,3]
[329765630,1718655054034,-995.64,0.00022191,3]
[329765631,1718655054043,-500.0,0.00022191,3]
[329765632,1718655054052,-500.0,0.00022191,3]
[329765633,1718655054062,-500.0,0.00022191,3]
[329765634,1718655054073,-734.65,0.00022191,3]
[329765635,1718655054082,-500.0,0.00022191,3]
[329765636,1718655054092,-1231.47,0.00022191,3]
[329765637,1718655054102,-500.0,0.00022191,3]
[329765638,1718655054111,-500.0,0.00022191,3]
[329765639,1718655054120,-500.0,0.00022191,3]
[329765640,1718655054135,-1037.66,0.00022191,3]
[329765641,1718655054145,-1520.38,0.00022191,3]
[329765642,1718655054154,-1095.19,0.00022191,3]
[329765643,1718655054163,-2024.24,0.00022191,3]
[329765644,1718655054172,-500.0,0.00022191,3]
[329765645,1718655054182,-500.0,0.00022191,3]
[329765646,1718655054191,-536.04961434,0.00022191,3]
[329765647,1718655054201,-649.56,0.00022191,3]
[329765648,1718655054210,-500.0,0.00022191,3]
[329765649,1718655054220,-512.47,0.00022191,3]
[329765650,1718655054229,-500.0,0.00022191,3]
[329765651,1718655054239,-832.4,0.00022191,3]
[329765652,1718655054248,-500.0,0.00022191,3]
[329765653,1718655054258,-500.0,0.00022191,3]
[329765654,1718655054267,-755.31,0.00022191,3]
[329765655,1718655054276,-2230.89,0.00022191,3]
[329765656,1718655054286,-587.85,0.00022191,3]
[329765657,1718655054295,-500.0,0.00022191,3]
[329765658,1718655054304,-1019.25,0.00022191,3]
[329765659,1718655054313,-500.0,0.00022191,3]
[329765660,1718655054323,-500.0,0.00022191,3]
[329765661,1718655054332,-1033.59,0.00022191,3]
[329765662,1718655054342,-669.26,0.00022191,3]
[329765663,1718655054351,-500.0,0.00022191,3]
[329765664,1718655054361,-500.0,0.00022191,3]
[329765665,1718655054370,-500.0,0.00022191,3]
[329765666,1718655054386,-1096.66,0.00022191,3]
[329765667,1718655054395,-500.0,0.00022191,3]
[329765668,1718655054405,-500.0,0.00022191,3]
[329765669,1718655054414,-783.79,0.00022191,3]
[329765670,1718655054423,-500.0,0.00022191,3]
[329765671,1718655054433,-500.0,0.00022191,3]
[329765672,1718655054443,-1714.94,0.00022191,3]
[329765673,1718655054452,-831.46,0.00022191,3]
[329765674,1718655054461,-151.0,0.00022191,7]
[329765675,1718655054471,-151.0,0.00022191,7]
[329765676,1718655054481,-1169.92,0.00022191,3]
[329765677,1718655054490,-647.8,0.00022191,3]
[329765678,1718655054500,-500.0,0.00022191,3]
[329765679,1718655054509,-500.0,0.00022191,3]
[329765680,1718655054518,-500.0,0.00022191,3]
[329765681,1718655054527,-851.77,0.00022191,3]
[329765682,1718655054537,-820.0,0.00022191,3]
[329765683,1718655054546,-897.74,0.00022191,3]
[329765684,1718655054555,-1487.78,0.00022191,3]
[329765685,1718655054565,-1903.59,0.00022191,3]
[329765686,1718655054574,-833.65,0.00022191,3]
[329765687,1718655054583,-151.0,0.00022191,7]
[329765688,1718655054593,-151.0,0.00022191,7]
[329765689,1718655054602,-151.0,0.00022191,7]
[329765690,1718655054611,-522.9,0.00022191,3]
[329765691,1718655054621,-500.0,0.00022191,3]
[329765692,1718655054633,-604.81058011,0.00022191,3]
[329765693,1718655054643,-500.0,0.00022191,3]
[329765694,1718655054652,-529.4979359,0.00022191,3]
[329765695,1718655054662,-551.41,0.00022191,3]
[329765696,1718655054671,-662.66,0.00022191,3]
[329765697,1718655054680,-500.0,0.00022191,3]
[329765698,1718655054690,-500.0,0.00022191,3]
[329765699,1718655054699,-500.0,0.00022191,3]
[329765700,1718655054709,-1060.27,0.00022191,3]
[329765701,1718655054718,-500.0,0.00022191,3]
[329765702,1718655054727,-1673.12,0.00022191,3]
[329765703,1718655054737,-1000.83,0.00022191,3]
[329765704,1718655054746,-500.0,0.00022191,3]
[329765705,1718655054755,-500.0,0.00022191,3]
[329765706,1718655054764,-500.0,0.00022191,3]
[329765707,1718655054773,-500.0,0.00022191,3]
[329765708,1718655054784,-1426.72,0.00022191,3]
[329765709,1718655054793,-244.29228953,0.00022191,3]
[329765710,1718655054802,-547.41,0.00022191,3]
[329765711,1718655054811,-740.35,0.00022191,3]
[329765712,1718655054821,-500.0,0.00022191,3]
[329765713,1718655054830,-500.0,0.00022191,3]
[329765714,1718655054839,-500.0,0.00022191,3]
[329765715,1718655054849,-500.0,0.00022191,3]
[329765716,1718655054859,-500.0,0.00022191,3]
[329765717,1718655054869,-1104.7,0.00022191,3]
[329765718,1718655054879,-1126.98,0.00022191,3]
[329765719,1718655054888,-541.89703242,0.00022191,3]
[329765720,1718655054898,-500.0,0.00022191,3]
[329765721,1718655054907,-500.0,0.00022191,3]
[329765722,1718655054919,-927.98,0.00022191,3]
[329765723,1718655054928,-557.09,0.00022191,3]
[329765724,1718655054938,-500.0,0.00022191,3]
[329765725,1718655054947,-500.0,0.00022191,3]
[329765726,1718655054957,-500.0,0.00022191,3]
[329765727,1718655054967,-2390.59,0.00022191,3]
[329765728,1718655054976,-500.0,0.00022191,3]
[329765729,1718655054986,-1967.52,0.00022191,3]
[329765730,1718655054997,-200.0,0.00022191,3]
[329765731,1718655055007,-500.0,0.00022191,3]
[329765732,1718655055016,-897.99,0.00022191,3]
[329765733,1718655055026,-16132.6,0.00022191,3]
[329765734,1718655055035,-1656.89,0.00022191,3]
[329765735,1718655055044,-500.0,0.00022191,3]
[329765736,1718655055053,-500.0,0.00022191,3]
[329765737,1718655055063,-1000.0,0.00022191,3]
[329765738,1718655055072,-796.08,0.00022191,3]
[329765739,1718655055081,-1412.7,0.00022191,3]
[329765740,1718655055091,-500.0,0.00022191,3]
[329765741,1718655055099,-7472.77,0.00022191,3]
[329765742,1718655055109,-1238.52,0.00022191,3]
[329765743,1718655055118,-500.0,0.00022191,3]
[329765744,1718655055129,-500.0,0.00022191,3]
[329765745,1718655055139,-621.92,0.00022191,3]
[329765746,1718655055148,-500.0,0.00022191,3]
[329765747,1718655055157,-914.92,0.00022191,3]
[329765748,1718655055166,-1117.25,0.00022191,3]
[329765749,1718655055176,-2571.23,0.00022191,3]
[329765750,1718655055184,-500.0,0.00022191,3]
[329765751,1718655055194,-500.0,0.00022191,3]
[329765752,1718655055203,-500.0,0.00022191,3]
[329765753,1718655055213,-813.43,0.00022191,3]
[329765754,1718655055222,-13197.41,0.00022191,3]
[329765755,1718655055231,-946.94,0.00022191,3]
[329765756,1718655055240,-500.0,0.00022191,3]
[329765757,1718655055249,-1875.65,0.00022191,3]
[329765758,1718655055259,-500.0,0.00022191,3]
[329765759,1718655055268,-500.0,0.00022191,3]
[329765760,1718655055278,-553.05,0.00022191,3]
[329765761,1718655055288,-522.52,0.00022191,3]
[329765762,1718655055297,-500.0,0.00022191,3]
[329765763,1718655055307,-500.0,0.00022191,3]
[329765764,1718655055316,-500.0,0.00022191,3]
[329765765,1718655055326,-5402.77,0.00022191,3]
[329765766,1718655055336,-720.62,0.00022191,3]
[329765767,1718655055346,-500.0,0.00022191,3]
[329765768,1718655055356,-1551.55,0.00022191,3]
[329765769,1718655055366,-2238.69,0.00022191,3]
[329765770,1718655055381,-500.0,0.00022191,3]
[329765771,1718655055394,-403.03767837,0.00022191,3]
[329765772,1718655055404,-500.0,0.00022191,3]
[329765773,1718655055414,-557.88,0.00022191,3]
[329765774,1718655055428,-500.0,0.00022191,3]
[329765775,1718655055438,-18890.95,0.00022191,3]
[329765776,1718655055447,-500.0,0.00022191,3]
[329765777,1718655055458,-500.0,0.00022191,3]
[329765778,1718655055468,-500.0,0.00022191,3]
[329765779,1718655055478,-500.0,0.00022191,3]
[329765780,1718655055487,-1851.86,0.00022191,3]
[329765781,1718655055496,-2058.77,0.00022191,3]
[329765782,1718655055505,-500.0,0.00022191,3]
[329765783,1718655055515,-630.1,0.00022191,3]
[329765784,1718655055524,-599.27,0.00022191,3]
[329765785,1718655055534,-500.0,0.00022191,3]
[329765786,1718655055544,-550.47,0.00022191,3]
[329765787,1718655055554,-500.0,0.00022191,3]
[329765788,1718655055564,-500.0,0.00022191,3]
[329765789,1718655055574,-544.05,0.00022191,3]
[329765790,1718655055583,-51232.87,0.00022191,3]
[329765791,1718655055594,-4384.76,0.00022191,3]
[329765792,1718655055603,-1257.44,0.00022191,3]
[329765793,1718655055612,-2410.15,0.00022191,3]
[329765794,1718655055622,-152.985854,0.00022191,7]
[329765795,1718655055637,-500.0,0.00022191,3]
[329765796,1718655055647,-2098.41,0.00022191,3]
[329765797,1718655055657,-674.02,0.00022191,3]
[329765798,1718655055668,-636.4,0.00022191,3]
[329765799,1718655055678,-500.0,0.00022191,3]
[329765800,1718655055688,-500.0,0.00022191,3]
[329765801,1718655055698,-782.2,0.00022191,3]
[329765802,1718655055709,-554.93,0.00022191,3]
[329765803,1718655055720,-1023.82,0.00022191,3]
[329765804,1718655055730,-1702.99,0.00022191,3]
[329765805,1718655055741,-500.0,0.00022191,3]
[329765806,1718655055752,-1281.04,0.00022191,3]
[329765807,1718655055762,-3105.55,0.00022191,3]
[329765808,1718655055773,-500.0,0.00022191,3]
[329765809,1718655055782,-2034.48,0.00022191,3]
[329765810,1718655055793,-5775.46,0.00022191,3]
[329765811,1718655055803,-500.0,0.00022191,3]
[329765812,1718655055814,-733.85,0.00022191,3]
[329765813,1718655055824,-500.0,0.00022191,3]
[329765814,1718655055834,-1194.63,0.00022191,3]
[329765815,1718655055843,-500.0,0.00022191,3]
[329765816,1718655055853,-500.0,0.00022191,3]
[329765817,1718655055863,-2718.63,0.00022191,3]
[329765818,1718655055872,-8186.16,0.00022191,3]
[329765819,1718655055885,-989.18,0.00022191,3]
[329765820,1718655055895,-584.58,0.00022191,3]
[329765821,1718655055904,-1024.29,0.00022191,3]
[329765822,1718655055913,-500.0,0.00022191,3]
[329765823,1718655055925,-3637.62,0.00022191,3]
[329765824,1718655055935,-500.0,0.00022191,3]
[329765825,1718655055945,-500.0,0.00022191,3]
[329765826,1718655055955,-555.13,0.00022191,3]
[329765827,1718655055964,-947.75,0.00022191,3]
[329765828,1718655055975,-5852.37,0.00022191,3]
[329765829,1718655055984,-3682.79,0.00022191,3]
[329765830,1718655055994,-500.0,0.00022191,3]
[329765831,1718655056007,-3919.01,0.00022191,3]
[329765832,1718655056017,-580.236484,0.00022191,3]
[329765833,1718655056027,-1815.51,0.00022191,3]
[329765834,1718655056037,-1372.03,0.00022191,3]
[329765835,1718655056048,-500.0,0.00022191,3]
[329765836,1718655056059,-720.36,0.00022191,3]
[329765837,1718655056068,-1648.11,0.00022191,3]
[329765838,1718655056078,-952.73,0.00022191,3]
[329765839,1718655056087,-9827.34,0.00022191,3]
[329765840,1718655056098,-7652.84,0.00022191,3]
[329765841,1718655056107,-25074.39,0.00022191,3]
[329765842,1718655056116,-1806.48,0.00022191,3]
[329765843,1718655056128,-500.0,0.00022191,3]
[329765844,1718655056137,-6532.67,0.00022191,3]
[329765845,1718655056147,-500.0,0.00022191,3]
[329765846,1718655056156,-1415.28,0.00022191,3]
[329765847,1718655056165,-6325.01,0.00022191,3]
[329765848,1718655056175,-601.58,0.00022191,3]
[329765849,1718655056184,-500.0,0.00022191,3]
[329765850,1718655056194,-500.0,0.00022191,3]
[329765851,1718655056203,-500.0,0.00022191,3]
[329765852,1718655056212,-1507.65,0.00022191,3]
[329765853,1718655056221,-1881.97,0.00022191,3]
[329765854,1718655056231,-1106.23,0.00022191,3]
[329765855,1718655056240,-516.66,0.00022191,3]
[329765856,1718655056250,-500.0,0.00022191,3]
[329765857,1718655056259,-5621.4,0.00022191,3]
[329765858,1718655056268,-500.0,0.00022191,3]
[329765859,1718655056281,-500.0,0.00022191,3]
[329765860,1718655056291,-2784.61,0.00022191,3]
[329765861,1718655056300,-1778.27,0.00022191,3]
[329765862,1718655056310,-500.0,0.00022191,3]
[329765863,1718655056319,-500.0,0.00022191,3]
[329765864,1718655056329,-1851.7,0.00022191,3]
[329765865,1718655056340,-500.0,0.00022191,3]
[329765866,1718655056349,-1063.62,0.00022191,3]
[329765867,1718655056359,-11051.7,0.00022191,3]
[329765868,1718655056369,-1854.94,0.00022191,3]
[329765869,1718655056380,-500.0,0.00022191,3]
[329765870,1718655056390,-790.89,0.00022191,3]
[329765871,1718655056399,-2016.72,0.00022191,3]
[329765872,1718655056408,-2072.97,0.00022191,3]
[329765873,1718655056417,-5579.65,0.00022191,3]
[329765874,1718655056426,-185.17540534,0.00022191,3]
[329765875,1718655056438,-538.0980103,0.00022191,3]
[329765876,1718655056448,-47899.61,0.00022191,3]
[329765877,1718655056457,-500.0,0.00022191,3]
[329765878,1718655056467,-500.0,0.00022191,3]
[329765879,1718655056476,-500.0,0.00022191,3]
[329765880,1718655056486,-500.0,0.00022191,3]
[329765881,1718655056495,-2841.5,0.00022191,3]
[329765882,1718655056504,-500.0,0.00022191,3]
[329765883,1718655056514,-15295.92,0.00022191,3]
[329765884,1718655056523,-1117.79,0.00022191,3]
[329765885,1718655056532,-730.19,0.00022191,3]
[329765886,1718655056542,-500.0,0.00022191,3]
[329765887,1718655056551,-151.0,0.00022191,7]
[329765888,1718655056560,-151.0,0.00022191,7]
[329765889,1718655056570,-500.0,0.00022191,3]
[329765890,1718655056579,-738.05,0.00022191,3]
[329765891,1718655056734,-2350.38,0.00022191,3]
[329765892,1718655056758,-1573.64,0.00022191,3]
[329765893,1718655056767,-436.13,0.00022191,3]
[329765894,1718655056777,-4608.0,0.00022191,3]
[329765895,1718655056786,-500.0,0.00022191,3]
[329765896,1718655056795,-151.0,0.00022191,7]
[329765897,1718655056804,-500.0,0.00022191,3]
[329765898,1718655056814,-6787.12,0.00022191,3]
[329765899,1718655056824,-500.0,0.00022191,3]
[329765900,1718655056833,-5784.97,0.00022191,3]
[329765901,1718655056842,-151.0,0.00022191,7]
[329765902,1718655056852,-1932.08,0.00022191,3]
[329765903,1718655056861,-151.0,0.00022191,7]
[329765904,1718655056870,-500.0,0.00022191,3]
[329765905,1718655056881,-263.963641,0.00022191,7]
[329765906,1718655056890,-1068.18,0.00022191,3]
[329765907,1718655056899,-500.0,0.00022191,3]
[329765908,1718655056908,-9390.68,0.00022191,3]
[329765909,1718655056919,-944.73,0.00022191,3]
[329765910,1718655056933,-973.74,0.00022191,3]
[329765911,1718655056943,-500.0,0.00022191,3]
[329765912,1718655056951,-500.0,0.00022191,3]
[329765913,1718655056960,-8344.7,0.00022191,3]
[329765914,1718655056971,-722.98,0.00022191,3]
[329765915,1718655056980,-680.11,0.00022191,3]
[329765916,1718655056989,-1161.94,0.00022191,3]
[329765917,1718655057000,-500.0,0.00022191,3]
[329765918,1718655057009,-48669.15,0.00022191,3]
[329765919,1718655057018,-4019.74,0.00022191,3]
[329765920,1718655057027,-500.0,0.00022191,3]
[329765921,1718655057036,-4731.19,0.00022191,3]
[329765922,1718655057045,-1406.8,0.00022191,3]
[329765923,1718655057054,-500.0,0.00022191,3]
[329765924,1718655057064,-3028.19,0.00022191,3]
[329765925,1718655057073,-500.0,0.00022191,3]
[329765926,1718655057082,-11466.38,0.00022191,3]
[329765927,1718655057091,-893.11,0.00022191,3]
[329765928,1718655057101,-500.0,0.00022191,3]
[329765929,1718655057110,-500.0,0.00022191,3]
[329765930,1718655057119,-15214.99,0.00022191,3]
[329765931,1718655057128,-780.62,0.00022191,3]
[329765932,1718655057137,-1248.8,0.00022191,3]
[329765933,1718655057147,-4479.76,0.00022191,3]
[329765934,1718655057155,-2524.96,0.00022191,3]
[329765935,1718655057165,-500.0,0.00022191,3]
[329765936,1718655057174,-5936.28,0.00022191,3]
[329765937,1718655057184,-851.32,0.00022191,3]
[329765938,1718655057193,-500.0,0.00022191,3]
[329765939,1718655057202,-675.89,0.00022191,3]
[329765940,1718655057212,-500.0,0.00022191,3]
[329765941,1718655057222,-500.0,0.00022191,3]
[329765942,1718655057231,-4644.58,0.00022191,3]
[329765943,1718655057240,-500.0,0.00022191,3]
[329765944,1718655057250,-1393.43,0.00022191,3]
[329765945,1718655057259,-551.8,0.00022191,3]
[329765946,1718655057268,-4855.24,0.00022191,3]
[329765947,1718655057277,-9870.51,0.00022191,3]
[329765948,1718655057287,-500.0,0.00022191,3]
[329765949,1718655057297,-721.37,0.00022191,3]
[329765950,1718655057306,-5199.01,0.00022191,3]
[329765951,1718655057316,-13764.98,0.00022191,3]
[329765952,1718655057325,-4164.9,0.00022191,3]
[329765953,1718655057335,-4893.9,0.00022191,3]
[329765954,1718655057344,-500.0,0.00022191,3]
[329765955,1718655057354,-1002.28,0.00022191,3]
[329765956,1718655057363,-500.0,0.00022191,3]
[329765957,1718655057372,-2513.71,0.00022191,3]
[329765958,1718655057383,-607.63,0.00022191,3]
[329765959,1718655057392,-1114.9,0.00022191,3]
[329765960,1718655057402,-2222.13,0.00022191,3]
[329765961,1718655057411,-500.0,0.00022191,3]
[329765962,1718655057420,-790.7,0.00022191,3]
[329765963,1718655057430,-500.0,0.00022191,3]
[329765964,1718655057439,-607.4,0.00022191,3]
[329765965,1718655057448,-14344.34,0.00022191,3]
[329765966,1718655057458,-3259.63,0.00022191,3]
[329765967,1718655057467,-2653.59,0.00022191,3]
[329765968,1718655057476,-862.73,0.00022191,3]
[329765969,1718655057486,-500.0,0.00022191,3]
[329765970,1718655057495,-500.0,0.00022191,3]
[329765971,1718655057504,-669.63,0.00022191,3]
[329765972,1718655057514,-571.83,0.00022191,3]
[329765973,1718655057523,-1534.26,0.00022191,3]
[329765974,1718655057532,-2296.37,0.00022191,3]
[329765975,1718655057541,-1368.51,0.00022191,3]
[329765976,1718655057551,-573.39,0.00022191,3]
[329765977,1718655057561,-500.0,0.00022191,3]
[329765978,1718655057571,-8255.95,0.00022191,3]
[329765979,1718655057580,-516.13,0.00022191,3]
[329765980,1718655057590,-15272.3,0.00022191,3]
[329765981,1718655057599,-1920.22,0.00022191,3]
[329765982,1718655057608,-559.13,0.00022191,3]
[329765983,1718655057618,-3873.77,0.00022191,3]
[329765984,1718655057628,-6639.69,0.00022191,3]
[329765985,1718655057638,-2131.98,0.00022191,3]
[329765986,1718655057647,-2513.0,0.00022191,3]
[329765987,1718655057656,-1318.84,0.00022191,3]
[329765988,1718655057665,-1966.77,0.00022191,3]
[329765989,1718655057674,-524.76,0.00022191,3]
[329765990,1718655057685,-500.0,0.00022191,3]
[329765991,1718655057694,-11497.62,0.00022191,3]
[329765992,1718655057703,-802.05,0.00022191,3]
[329765993,1718655057712,-521.81,0.00022191,3]
[329765994,1718655057721,-500.0,0.00022191,3]
[329765995,1718655057730,-500.0,0.00022191,3]
[329765996,1718655057739,-500.0,0.00022191,3]
[329765997,1718655057748,-1686.42,0.00022191,3]
[329765998,1718655057758,-4392.88,0.00022191,3]
[329765999,1718655057768,-500.0,0.00022191,3]
[329766000,1718655057777,-500.0,0.00022191,3]
[329766001,1718655057786,-1036.97,0.00022191,3]
[329766002,1718655057795,-973.11,0.00022191,3]
[329766003,1718655057805,-500.0,0.00022191,3]
[329766004,1718655057815,-3532.57,0.00022191,3]
[329766005,1718655057824,-3906.44,0.00022191,3]
[329766006,1718655057833,-7195.8446196,0.00022191,3]
[329766007,1718655058347,-887.21994975,0.00021917,2]
[329766008,1718655058359,-1003.42005025,0.00021917,2]
[329766009,1718655058368,-3321.1753804,0.00022191,3]
[329766010,1718655058379,-4069.88,0.00022191,3]
[329766011,1718655058388,-4417.38,0.00022191,3]
[329766012,1718655058398,-3036.96,0.00022191,3]
[329766013,1718655058407,-500.0,0.00022191,3]
[329766014,1718655058417,-532.08,0.00022191,3]
[329766015,1718655058426,-6186.27,0.00022191,3]
[329766016,1718655058436,-500.0,0.00022191,3]
[329766017,1718655058445,-9896.66,0.00022191,3]
[329766018,1718655058454,-1842.41,0.00022191,3]
[329766019,1718655058464,-1049.61,0.00022191,3]
[329766020,1718655058473,-500.0,0.00022191,3]
[329766021,1718655058483,-666.5,0.00022191,3]
[329766022,1718655058673,-7851.58,0.00022191,3]
[329766023,1718655058682,-2144.62,0.00022191,3]
[329766024,1718655058691,-6000.29462345,0.00022191,3]
[329766025,1718655058936,-507.53028692,0.00022191,3]
[329766026,1718655058949,-346.40508963,0.00022191,3]
[329766027,1718655058960,-1806.36,0.00022191,3]
[329766028,1718655058970,-911.06,0.00022191,3]
[329766029,1718655058979,-1890.64,0.00022191,3]
[329766030,1718655058988,-150.0,0.00022261,2]
[329766031,1718655058999,-150.0,0.00022266,2]
[329766032,1718655059009,-150.0,0.00022284,2]
[329766033,1718655059019,-150.0,0.00022335,2]
[329766034,1718655059029,-650.0,0.00022356,2]
[329766035,1718655059039,-800.0,0.00022356,2]
[329766036,1718655059049,-800.0,0.00022356,2]
[329766037,1718655059059,-768.55,0.00022356,2]
[329766038,1718655059068,-500.0,0.00022367,2]
[329766039,1718655059078,-200.0,0.00022367,2]
[329766040,1718655059088,-150.0,0.0002243,2]
[329766041,1718655059097,-150.0,0.00022457,2]
[329766042,1718655059107,-150.0,0.00022458,2]
[329766043,1718655059116,-500.0,0.00022465,3]
[329766044,1718655059126,-500.0,0.00022465,3]
[329766045,1718655059139,-500.0,0.00022465,3]
[329766046,1718655059148,-619.12,0.00022465,3]
[329766047,1718655059157,-500.0,0.00022465,3]
[329766048,1718655059166,-500.0,0.00022465,3]
[329766049,1718655059175,-162.10147241,0.00022465,3]
[329766050,1718655059184,-500.0,0.00022465,3]
[329766051,1718655059193,-500.0,0.00022465,3]
[329766052,1718655059202,-500.0,0.00022465,3]
[329766053,1718655059212,-500.0,0.00022465,3]
[329766054,1718655059222,-548.7,0.00022465,3]
[329766055,1718655059233,-581.27,0.00022465,3]
[329766056,1718655059243,-500.0,0.00022465,3]
[329766057,1718655059253,-500.0,0.00022465,3]
[329766058,1718655059262,-500.0,0.00022465,3]
[329766059,1718655059272,-500.0,0.00022465,3]
[329766060,1718655059281,-500.0,0.00022465,3]
[329766061,1718655059291,-500.0,0.00022465,3]
[329766062,1718655059300,-500.0,0.00022465,3]
[329766063,1718655059309,-500.0,0.00022465,3]
[329766064,1718655059319,-500.0,0.00022465,3]
[329766065,1718655059329,-500.0,0.00022465,3]
[329766066,1718655059338,-500.0,0.00022465,3]
[329766067,1718655059348,-500.0,0.00022465,3]
[329766068,1718655059357,-500.0,0.00022465,3]
[329766069,1718655059366,-500.0,0.00022465,3]
[329766070,1718655059376,-500.0,0.00022465,3]
[329766071,1718655059388,-544.22,0.00022465,3]
[329766072,1718655059397,-184.95891658,0.00022465,3]
[329766073,1718655059407,-500.0,0.00022465,3]
[329766074,1718655059417,-500.0,0.00022465,3]
[329766075,1718655059426,-500.0,0.00022465,3]
[329766076,1718655059436,-500.0,0.00022465,3]
[329766077,1718655059445,-500.0,0.00022465,3]
[329766078,1718655059455,-500.0,0.00022465,3]
[329766079,1718655059464,-657.68,0.00022465,3]
[329766080,1718655059473,-500.0,0.00022465,3]
[329766081,1718655059482,-500.0,0.00022465,3]
[329766082,1718655059492,-327.72156437,0.00022465,3]
[329766083,1718655059501,-500.0,0.00022465,3]
[329766084,1718655059510,-500.0,0.00022465,3]
[329766085,1718655059519,-500.0,0.00022465,3]
[329766086,1718655059529,-215.70943136,0.00022465,3]
[329766087,1718655059538,-500.0,0.00022465,3]
[329766088,1718655059547,-500.0,0.00022465,3]
[329766089,1718655059556,-575.18652068,0.00022465,3]
[329766090,1718655059566,-500.0,0.00022465,3]
[329766091,1718655059575,-688.24,0.00022465,3]
[329766092,1718655059585,-412.72251781,0.00022465,3]
[329766093,1718655059594,-504.75,0.00022465,3]
[329766094,1718655059604,-500.0,0.00022465,3]
[329766095,1718655059614,-162.0108037,0.00022465,3]
[329766096,1718655059623,-546.1,0.00022465,3]
[329766097,1718655059634,-500.0,0.00022465,3]
[329766098,1718655059644,-306.89497709,0.00022465,3]
[329766099,1718655059653,-525.75,0.00022465,3]
[329766100,1718655059663,-500.0,0.00022465,3]
[329766101,1718655059673,-528.15,0.00022465,3]
[329766102,1718655059683,-500.0,0.00022465,3]
[329766103,1718655059692,-500.0,0.00022465,3]
[329766104,1718655059701,-401.79197821,0.00022465,3]
[329766105,1718655059710,-500.0,0.00022465,3]
[329766106,1718655059720,-500.0,0.00022465,3]
[329766107,1718655059730,-694.64,0.00022465,3]
[329766108,1718655059739,-778.45,0.00022465,3]
[329766109,1718655059748,-566.16,0.00022465,3]
[329766110,1718655059758,-500.0,0.00022465,3]
[329766111,1718655059767,-500.0,0.00022465,3]
[329766112,1718655059777,-500.0,0.00022465,3]
[329766113,1718655059786,-639.58,0.00022465,3]
[329766114,1718655059796,-500.0,0.00022465,3]
[329766115,1718655059806,-667.69,0.00022465,3]
[329766116,1718655059816,-502.82,0.00022465,3]
[329766117,1718655059826,-599.63343463,0.00022465,3]
[329766118,1718655059835,-500.0,0.00022465,3]
[329766119,1718655059845,-500.0,0.00022465,3]
[329766120,1718655059854,-500.0,0.00022465,3]
[329766121,1718655059864,-655.02,0.00022465,3]